bitfinex/quotes_ETHUSD_20250413
["timestamp","ask_amount","ask_price","bid_price","bid_amount"]
[1744569374936,13.8769,1630.3,1630.1,0.28583063]
[1744569375081,20.01097,1630.3,1630.1,0.28583063]
[1744569375281,7.743,1630.3,1630.2,6.13421]
[1744569375482,7.743,1630.3,1630.1,6.13443]
[1744569375707,7.743,1630.3,1630.2,0.89927363]
[1744569376625,0.02,1630.4,1630.2,7.24458063]
[1744569376827,0.02,1630.4,1630.3,6.19516534]
[1744569377199,0.02,1630.4,1630.3,18.39612867]
[1744569377403,0.02,1630.4,1630.3,18.6819593]
[1744569378385,0.02,1630.4,1630.3,21.6819593]
[1744569378585,7.741,1631.1,1630.9,6.13141]
[1744569378793,13.87183,1631.1,1631.0,0.26332088]
[1744569379022,7.741,1631.1,1631.0,0.26332088]
[1744569379227,7.741,1631.1,1630.8,6.95647]
[1744569379403,6.97115,1631.4,1631.0,0.24081113]
[1744569379616,6.13028,1631.3,1630.9,6.13147]
[1744569379817,6.13046,1631.2,1631.1,0.23875782]
[1744569380013,6.13099,1631.1,1630.8,0.8247]
[1744569380215,8.80379177,1631.4,1630.9,0.06130811]
[1744569380390,6.14973,1631.4,1630.9,0.06130811]
[1744569380594,0.02,1631.4,1631.2,6.1304]
[1744569380795,0.02,1631.4,1631.2,6.901]
[1744569381027,0.02,1631.4,1631.3,6.13008]
[1744569381454,0.02,1631.4,1631.2,6.90084]
[1744569381627,0.02,1631.4,1631.3,0.75137558]
[1744569381957,0.02,1631.4,1631.3,6.19137158]
[1744569383216,0.02,1631.4,1631.3,6.13008]
[1744569384157,0.02,1631.4,1631.3,10.93895599]
[1744569384453,0.02,1631.4,1631.3,10.87766867]
[1744569384654,0.02,1631.4,1631.3,10.93895041]
[1744569384861,0.02,1631.4,1631.3,12.72292945]
[1744569385024,0.02,1631.4,1631.3,16.27292945]
[1744569385358,0.4037944,1631.7,1631.6,10.49465]
[1744569385666,0.4037944,1631.7,1631.6,22.97723867]
[1744569385830,0.4037944,1631.7,1631.6,22.42723867]
[1744569386035,0.4037944,1631.7,1631.6,17.19194839]
[1744569388075,0.4037944,1631.7,1631.6,2.51229839]
[1744569388278,0.4037944,1631.7,1631.6,0.06128207]
[1744569388576,0.4037944,1631.7,1631.5,6.12916]
[1744569389066,0.4037944,1631.7,1631.6,0.06128289]
[1744569389267,0.4037944,1631.7,1631.6,0.06128292]
[1744569389479,0.4037944,1631.7,1631.5,6.12913]
[1744569389774,0.4037944,1631.7,1631.6,0.06128295]
[1744569389963,0.4037944,1631.7,1631.5,7.436579]
[1744569390338,0.4037944,1631.7,1631.6,6.19023292]
[1744569390773,0.4037944,1631.7,1631.6,6.12895]
[1744569391277,0.4037944,1631.7,1631.5,7.436579]
[1744569391493,6.12919,1631.6,1631.4,0.8157]
[1744569391668,6.12919,1631.6,1631.2,12.27031]
[1744569391669,6.12939,1631.5,1631.2,12.27031]
[1744569392250,6.12919,1631.6,1631.3,6.12993]
[1744569392580,12.25833,1631.6,1631.2,12.27027]
[1744569392782,6.12934,1631.5,1631.2,12.27027]
[1744569393074,6.12934,1631.5,1631.1,6.90335]
[1744569393238,6.12934,1631.5,1631.2,0.06129404]
[1744569393434,12.25898,1631.5,1631.2,6.19165404]
[1744569393673,12.25898,1631.5,1631.1,6.90336]
[1744569394090,6.13021,1631.3,1630.9,6.904]
[1744569394294,6.13048,1631.2,1630.9,6.904]
[1744569394447,15.23475869,1631.5,1631.0,6.19228561]
[1744569394448,6.12985,1631.4,1631.0,6.19228561]
[1744569394646,12.2598,1631.4,1631.0,6.19228561]
[1744569394881,6.13013,1631.3,1631.0,6.19228561]
[1744569395088,6.13013,1631.3,1631.1,0.19097735]
[1744569395589,6.13045,1631.2,1631.1,0.19097735]
[1744569395790,13.04041,1631.3,1631.1,0.19097735]
[1744569396288,6.13179,1630.9,1630.6,6.14]
[1744569396486,0.78,1630.9,1630.5,6.13302]
[1744569396651,6.132,1630.8,1630.4,6.93922]
[1744569396997,6.13246,1630.7,1630.0,13.08068]
[1744569397154,6.13323,1630.5,1630.1,13.576868]
[1744569397352,6.13323,1630.5,1630.1,7.442438]
[1744569397655,6.13323,1630.5,1629.8,13.07672]
[1744569397656,6.13421,1630.2,1629.8,13.07672]
[1744569397855,0.78,1630.4,1629.6,0.8058]
[1744569398163,3.0,1630.3,1629.7,6.13593]
[1744569398360,3.0,1630.3,1629.6,6.94223]
[1744569398361,6.13421,1630.2,1629.6,6.94223]
[1744569398568,6.13588,1629.8,1629.4,6.94294]
[1744569398762,13.84414,1630.0,1629.5,6.13653]
[1744569398996,6.1356,1629.9,1629.4,8.250936]
[1744569399194,6.1356,1629.9,1629.5,6.13679]
[1744569399356,6.1356,1629.9,1629.4,8.250936]
[1744569399690,6.95524,1629.5,1629.1,6.15821]
[1744569399848,13.0924,1629.5,1629.1,6.15821]
[1744569400047,13.09235,1629.5,1629.1,6.15821]
[1744569400283,6.13784,1629.3,1629.1,0.02]
[1744569400462,14.66625,1629.5,1629.1,0.02]
[1744569400683,8.5292,1629.5,1629.1,0.02]
[1744569400887,6.1375,1629.4,1629.1,0.02]
[1744569401177,8.5292,1629.5,1629.1,0.02]
[1744569401178,6.13798,1629.2,1629.1,0.02]
[1744569401607,6.95618,1629.2,1629.1,0.02]
[1744569401791,9.95618,1629.2,1629.1,0.02]
[1744569401990,0.8182,1629.2,1629.1,0.02]
[1744569403622,3.8182,1629.4,1629.1,6.15835]
[1744569404274,9.95549,1629.4,1629.1,0.02]
[1744569405405,17.67049,1629.4,1629.1,0.02]
[1744569405984,11.5332,1629.4,1629.1,6.15833]
[1744569406219,0.8182,1629.6,1629.2,6.14]
[1744569406522,7.715,1629.6,1629.4,6.13709]
[1744569406719,7.715,1629.6,1629.2,12.27793]
[1744569406882,7.715,1629.6,1629.3,6.13744]
[1744569407086,13.85152,1629.6,1629.3,6.13744]
[1744569407620,13.85152,1629.6,1629.2,12.27776]
[1744569408123,6.137,1629.5,1629.2,12.27776]
[1744569408436,6.1376,1629.3,1629.2,6.14]
[1744569408976,6.13798,1629.2,1629.1,0.02]
[1744569410020,6.13798,1629.2,1629.1,0.24758465]
[1744569411122,6.1376,1629.3,1629.1,0.24758465]
[1744569411362,12.27548,1629.3,1629.1,0.24758465]
[1744569412000,6.13798,1629.2,1629.1,0.24758465]
[1744569413845,0.8182,1629.4,1629.1,0.24758465]
[1744569414154,3.0,1629.5,1629.2,6.13779]
[1744569414332,3.0,1629.5,1629.3,6.13744]
[1744569414507,8.5332,1629.6,1629.3,6.42899209]
[1744569414709,8.5332,1629.6,1629.4,6.13718]
[1744569415004,8.5362,1629.9,1629.7,6.13574]
[1744569415208,8.5362,1629.9,1629.8,6.13572]
[1744569415209,7.718,1629.9,1629.8,6.13572]
[1744569415411,7.718,1629.9,1629.8,6.36222461]
[1744569415608,0.8182,1630.2,1629.9,6.13511]
[1744569415810,0.8182,1630.2,1630.0,0.22153854]
[1744569416563,6.13422,1630.2,1630.0,0.22153854]
[1744569416871,66.44287,1630.3,1630.0,0.22153854]
[1744569417035,52.591,1630.3,1630.1,6.13444]
[1744569417380,52.591,1630.3,1630.2,0.22153854]
[1744569417661,58.72501,1630.3,1629.9,18.41027]
[1744569417818,52.591,1630.3,1630.1,6.1345]
[1744569418018,52.591,1630.3,1630.2,0.20923493]
[1744569419472,52.591,1630.3,1630.2,6.34344493]
[1744569419777,52.591,1630.3,1630.2,0.20923493]
[1744569420264,52.591,1630.3,1630.2,6.34344493]
[1744569420766,52.591,1630.3,1630.2,0.20923493]
[1744569421078,61.21025671,1630.3,1630.2,0.20923493]
[1744569421235,52.591,1630.3,1630.2,0.20923493]
[1744569421436,52.591,1630.3,1630.2,6.13421]
[1744569421651,52.591,1630.3,1629.9,12.2752]
[1744569421855,6.1343,1630.2,1629.9,12.2752]
[1744569422149,58.72519,1630.3,1629.9,18.41034]
[1744569422534,6.13424,1630.2,1629.9,12.27514]
[1744569423274,6.13424,1630.2,1629.9,6.14]
[1744569423429,6.13424,1630.2,1629.5,6.14]
[1744569423430,6.13601,1629.8,1629.5,6.14]
[1744569423772,7.697,1629.8,1629.6,6.13633]
[1744569423932,13.83301,1629.8,1629.5,6.14]
[1744569424127,13.83301,1629.8,1629.3,6.9718]
[1744569424335,6.13621,1629.7,1629.4,0.69718]
[1744569424533,12.27255,1629.7,1629.4,0.69718]
[1744569424761,12.27255,1629.7,1629.3,13.10939]
[1744569425082,12.27255,1629.7,1629.4,0.19441958]
[1744569425273,13.83289,1629.8,1629.5,6.13684]
[1744569425791,19.9689,1629.8,1629.6,0.19441958]
[1744569425933,6.9291,1630.1,1629.7,6.13609]
[1744569426137,3.0,1630.0,1629.9,6.13534]
[1744569426406,3.0,1630.1,1629.9,0.19808574]
[1744569426558,6.13496,1630.0,1629.8,6.14]
[1744569426763,9.13467,1630.1,1629.9,0.19808574]
[1744569427099,3.0,1630.1,1629.9,6.13524]
[1744569427396,3.0,1630.1,1630.0,0.19808574]
[1744569427555,9.13459,1630.1,1629.8,6.14]
[1744569427760,12.2705,1630.0,1629.9,0.19409617]
[1744569427987,6.13517,1630.0,1629.8,6.14]
[1744569428187,6.13516,1630.0,1629.9,0.19409617]
[1744569428388,6.13516,1630.0,1629.8,6.14]
[1744569428602,9.1346,1630.1,1629.9,0.19409617]
[1744569428603,3.0,1630.1,1629.9,0.19409617]
[1744569428761,3.0,1630.1,1629.8,18.41134]
[1744569428961,3.0,1630.1,1629.9,0.19409617]
[1744569429163,6.1351,1630.0,1629.8,6.14]
[1744569429363,6.1351,1630.0,1629.9,0.19409617]
[1744569429677,6.1351,1630.0,1629.8,6.14]
[1744569430016,3.0,1630.1,1629.9,0.19409617]
[1744569430162,3.0,1630.1,1629.8,13.04786]
[1744569430364,3.0,1630.1,1629.9,0.19409617]
[1744569430682,3.0,1630.1,1629.8,14.96623]
[1744569430890,3.0,1630.1,1630.0,0.19409617]
[1744569431078,3.0,1630.1,1629.9,6.13531]
[1744569431274,7.697,1630.2,1630.1,6.13459]
[1744569431505,10.697,1630.2,1630.0,0.19409617]
[1744569431698,10.697,1630.2,1629.8,6.14]
[1744569431887,10.697,1630.2,1630.1,0.19409617]
[1744569431888,18.596557,1630.2,1630.1,0.19409617]
[1744569432083,12.462347,1630.2,1629.8,6.14]
[1744569432263,6.1353,1630.0,1629.8,6.14]
[1744569432668,6.13466,1630.1,1629.8,6.14]
[1744569432669,6.13461,1630.1,1629.8,6.14]
[1744569432897,10.697,1630.2,1629.9,6.90746]
[1744569433059,6.13494,1630.1,1629.8,7.37374441]
[1744569433263,10.697,1630.2,1630.0,6.13485]
[1744569433477,7.697,1630.2,1630.0,6.19613416]
[1744569433761,6.93543,1630.4,1630.1,6.13439]
[1744569433974,6.93543,1630.4,1630.0,6.75451342]
[1744569433975,6.93543,1630.4,1630.0,12.89451342]
[1744569434179,6.13408,1630.3,1630.0,6.14]
[1744569434409,6.13435,1630.2,1630.0,6.14]
[1744569434706,12.26876,1630.2,1630.0,6.14]
[1744569435117,6.13435,1630.2,1630.0,6.14]
[1744569435486,6.13459,1630.1,1630.0,6.14]
[1744569436024,6.13642,1629.7,1629.5,6.14]
[1744569436228,8.4493,1629.7,1629.2,6.14]
[1744569436383,12.2743,1629.5,1629.2,6.14]
[1744569436581,6.13723,1629.4,1629.2,6.14]
[1744569437656,12.27466,1629.4,1629.2,6.14]
[1744569438119,6.13723,1629.4,1629.2,6.14]
[1744569438318,12.27473,1629.4,1629.2,6.14]
[1744569438516,6.8909,1629.3,1629.1,0.02]
[1744569438713,6.13798,1629.2,1629.1,0.02]
[1744569439520,6.59850671,1629.2,1629.1,0.02]
[1744569440632,14.5879,1629.3,1629.1,0.02]
[1744569440927,6.13798,1629.2,1629.1,0.02]
[1744569446566,8.9056264,1629.3,1629.1,0.02]
[1744569446730,7.697,1629.3,1629.1,0.635857]
[1744569447661,13.83464,1629.3,1629.1,0.635857]
[1744569447817,13.83464,1629.3,1629.1,0.02]
[1744569449279,7.697,1629.3,1629.1,0.02]
[1744569449470,7.697,1629.3,1629.2,6.13798]
[1744569449764,7.697,1629.3,1629.1,6.15818]
[1744569450471,7.697,1629.3,1629.1,12.29639]
[1744569450671,7.697,1629.3,1629.2,6.13798]
[1744569451466,7.697,1629.3,1629.2,12.27798]
[1744569452033,7.697,1629.3,1629.2,6.14]
[1744569452834,6.13798,1629.2,1629.1,0.02]
[1744569453661,20.80405,1629.3,1629.1,0.02]
[1744569453861,7.697,1629.3,1629.1,0.02]
[1744569454035,6.96836,1629.5,1629.1,0.02]
[1744569454036,14.64973,1629.7,1629.3,6.13725]
[1744569454236,19.95451,1629.7,1629.4,6.13706]
[1744569454779,13.81823,1629.7,1629.4,6.13706]
[1744569455074,19.95451,1629.7,1629.4,6.13706]
[1744569455273,6.1365,1629.6,1629.3,13.583235]
[1744569455477,6.1365,1629.6,1629.4,0.21027173]
[1744569455646,6.1365,1629.6,1629.3,7.445775]
[1744569455841,7.682,1629.7,1629.4,0.21027173]
[1744569456043,6.13677,1629.6,1629.3,6.13748]
[1744569456241,6.13677,1629.6,1629.4,0.21027173]
[1744569456486,6.13677,1629.6,1629.3,6.13748]
[1744569456692,6.13677,1629.6,1629.4,0.21027173]
[1744569456891,6.13677,1629.6,1629.3,12.27496]
[1744569457190,13.8181,1629.7,1629.4,0.21027173]
[1744569457590,19.95438,1629.7,1629.3,14.197256]
[1744569457795,19.95438,1629.7,1629.5,0.21027173]
[1744569457982,13.8181,1629.7,1629.3,14.197256]
[1744569458181,16.8181,1629.7,1629.6,0.21027173]
[1744569458381,22.95444,1629.7,1629.3,14.197256]
[1744569458587,22.95444,1629.7,1629.6,0.21027173]
[1744569458765,6.13682,1629.6,1629.2,13.08594]
[1744569458971,12.27364,1629.6,1629.2,15.010367]
[1744569459171,6.13682,1629.6,1629.2,21.148197]
[1744569459862,12.27342,1629.6,1629.2,15.010257]
[1744569460275,6.13665,1629.6,1629.2,15.010257]
[1744569460495,22.95432,1629.7,1629.3,6.13737]
[1744569460691,16.8181,1629.7,1629.4,6.13722]
[1744569461298,22.95437,1629.7,1629.4,6.13722]
[1744569461799,0.8096,1629.9,1629.5,6.9692]
[1744569461976,60.33,1630.1,1629.9,6.13508]
[1744569462295,60.33,1630.1,1630.0,6.13496]
[1744569462296,7.681,1630.1,1630.0,6.13496]
[1744569462476,6.92658,1630.4,1630.0,12.26992]
[1744569462685,14.60758,1630.4,1630.0,12.26992]
[1744569462857,14.60758,1630.4,1630.0,6.13496]
[1744569463058,6.13401,1630.3,1629.9,6.13529]
[1744569463301,6.13429,1630.2,1629.8,13.10038]
[1744569464391,6.13429,1630.2,1629.9,6.13528]
[1744569464991,3.47128393,1630.3,1629.8,0.8292]
[1744569465302,6.13422,1630.2,1629.8,6.13547]
[1744569465472,6.1348,1630.1,1629.7,12.27594]
[1744569465806,12.26964,1630.1,1629.7,12.27594]
[1744569466002,1.23548393,1630.3,1629.7,6.20135282]
[1744569466208,9.89807,1630.3,1629.9,6.13518]
[1744569466377,3.7642,1630.3,1630.0,6.13484]
[1744569466576,3.0,1630.3,1630.0,6.92803]
[1744569466775,9.13409,1630.3,1629.9,6.1353]
[1744569466986,9.13409,1630.3,1629.9,13.497595]
[1744569467202,9.13409,1630.3,1630.0,6.13481]
[1744569467578,15.2682,1630.3,1629.9,7.362295]
[1744569467797,9.13409,1630.3,1629.9,13.497485]
[1744569468576,15.26813,1630.3,1629.9,13.497485]
[1744569469089,9.13404,1630.3,1629.9,13.497485]
[1744569469481,9.13404,1630.3,1630.0,6.13487]
[1744569470211,9.13404,1630.3,1630.1,0.20013441]
[1744569470598,6.13421,1630.2,1630.1,0.20013441]
[1744569470983,6.13421,1630.2,1629.8,13.0643]
[1744569471309,9.13389,1630.3,1629.9,12.27053]
[1744569471522,15.26792,1630.3,1630.0,0.20013441]
[1744569472435,0.7606,1630.7,1630.4,6.13329]
[1744569472725,0.7606,1630.7,1630.4,12.26661]
[1744569472929,72.58731,1630.8,1630.4,7.359951]
[1744569473129,72.58731,1630.8,1630.5,0.19441939]
[1744569473327,60.323,1630.8,1630.5,7.09605939]
[1744569473627,66.45497,1630.8,1630.5,7.09605939]
[1744569475125,72.58718,1630.8,1630.5,0.96321939]
[1744569475545,6.13271,1630.6,1630.5,0.19441939]
[1744569475715,6.13267,1630.7,1630.5,0.19441939]
[1744569475914,67.41759905,1630.8,1630.4,12.26656]
[1744569476227,6.13233,1630.7,1630.3,6.13371]
[1744569476435,12.26499,1630.7,1630.4,0.18903162]
[1744569476637,6.13233,1630.7,1630.3,6.13371]
[1744569476951,6.13233,1630.7,1630.4,0.18903162]
[1744569477246,6.13233,1630.7,1630.4,6.13336]
[1744569477556,60.323,1630.8,1630.5,7.09064162]
[1744569478634,60.323,1630.8,1630.5,13.22359162]
[1744569479149,7.679,1630.8,1630.7,6.13233]
[1744569479319,6.304041,1631.3,1630.9,6.13139]
[1744569479320,13.80752,1631.2,1630.9,6.13139]
[1744569479650,13.80752,1631.2,1631.0,0.18278187]
[1744569480529,6.13083,1631.1,1631.0,0.18278187]
[1744569480748,6.13083,1631.1,1630.7,19.630907]
[1744569481214,6.13083,1631.1,1630.8,0.18278187]
[1744569481951,12.26184,1631.1,1630.8,0.18278187]
[1744569482524,6.13083,1631.1,1630.8,0.18278187]
[1744569482719,6.13122,1631.0,1630.8,0.18278187]
[1744569482924,6.13158,1630.9,1630.8,0.18278187]
[1744569483114,6.88772,1631.0,1630.8,0.18278187]
[1744569483318,6.13158,1630.9,1630.8,0.18278187]
[1744569484150,0.7565,1630.7,1630.3,6.14]
[1744569484349,3.0,1630.8,1630.6,6.90898]
[1744569484754,3.0,1630.8,1630.7,0.18116625]
[1744569485127,13.08136,1631.1,1630.7,12.27226]
[1744569485450,6.95026,1631.1,1630.7,18.40443]
[1744569485637,6.13053,1631.2,1630.9,6.13155]
[1744569486246,6.13053,1631.2,1631.0,0.18170476]
[1744569486622,6.13053,1631.2,1630.8,6.19313186]
[1744569486820,6.13096,1631.1,1630.9,0.18170476]
[1744569487781,6.13048,1631.2,1630.9,0.18170476]
[1744569488061,14.60643,1631.3,1631.0,6.13119]
[1744569488362,6.13065,1631.2,1631.1,0.17825887]
[1744569488732,6.13065,1631.2,1630.9,6.13142]
[1744569488931,6.13065,1631.2,1631.1,0.17825887]
[1744569489126,6.13065,1631.2,1630.9,7.54240482]
[1744569489333,6.12909,1631.6,1631.2,6.13027]
[1744569489859,6.12909,1631.6,1631.3,0.17373587]
[1744569490029,6.12945,1631.5,1631.3,0.17373587]
[1744569490358,6.12945,1631.5,1631.1,6.19204938]
[1744569490359,12.25913,1631.5,1631.1,12.32269938]
[1744569490528,6.12914,1631.6,1631.4,0.17352054]
[1744569490729,1.1882944,1631.7,1631.5,6.12916]
[1744569490953,4.1882944,1631.7,1631.5,0.17352054]
[1744569491461,10.3169844,1631.7,1631.5,0.17352054]
[1744569491677,16.4457444,1631.7,1631.5,0.17352054]
[1744569491979,6.12952,1631.5,1631.3,0.8228]
[1744569492279,0.4037944,1631.7,1631.6,6.12895]
[1744569492479,0.4037944,1631.7,1631.6,7.01303316]
[1744569492885,0.4037944,1631.7,1631.6,13.15303316]
[1744569493181,0.4037944,1631.7,1631.6,13.09175]
[1744569493381,0.4037944,1631.7,1631.6,15.013841]
[1744569493983,0.4037944,1631.7,1631.6,6.9628]
[1744569495083,0.8054,1631.6,1630.6,6.961]
[1744569495294,6.13013,1631.3,1630.8,6.13159]
[1744569495458,6.12991,1631.4,1631.0,6.95204]
[1744569495795,6.93442,1631.6,1631.2,6.13045]
[1744569496093,6.13008,1631.3,1631.0,0.821]
[1744569496566,3.8054,1631.3,1630.7,6.14]
[1744569496897,6.1312,1631.0,1630.7,6.14]
[1744569497193,6.13049,1631.2,1630.7,7.449359]
[1744569497403,6.13178,1630.9,1630.7,6.14]
[1744569497692,6.13195,1630.8,1630.7,6.14]
[1744569497853,6.13083,1631.1,1630.4,6.13344]
[1744569497854,6.13233,1630.7,1630.4,6.14]
[1744569498057,0.8054,1630.9,1630.4,6.14]
[1744569498257,7.654,1631.0,1630.5,6.13288]
[1744569498258,13.78551,1631.0,1630.5,6.13288]
[1744569498456,19.91706,1631.0,1630.6,0.613288]
[1744569498659,19.91706,1631.0,1630.6,1.49560657]
[1744569498893,7.654,1631.0,1630.6,7.62815657]
[1744569499102,13.78526,1631.0,1630.6,7.62815657]
[1744569499275,6.1316,1630.9,1630.6,1.434288]
[1744569499674,13.78526,1631.0,1630.6,1.49560658]
[1744569499892,13.78526,1631.0,1630.6,7.62826658]
[1744569500093,13.78526,1631.0,1630.7,0.89513669]
[1744569500319,7.654,1631.0,1630.8,0.06131858]
[1744569500459,9.8895,1631.3,1630.9,6.13157]
[1744569500663,9.8895,1631.3,1630.8,6.19300186]
[1744569500664,13.01985,1631.3,1631.0,0.13231003]
[1744569500860,6.13047,1631.2,1630.8,0.06131186]
[1744569501071,12.26128,1631.2,1630.9,0.13231003]
[1744569501277,6.13086,1631.1,1630.9,0.13231003]
[1744569502027,6.13047,1631.2,1630.9,0.13231003]
[1744569502835,6.88931,1631.3,1630.9,0.13231003]
[1744569502836,6.88931,1631.3,1630.9,6.26370003]
[1744569502991,13.01953,1631.3,1630.9,7.14680625]
[1744569503185,6.88931,1631.3,1630.9,8.60562216]
[1744569503393,6.8904,1631.0,1630.9,0.13231003]
[1744569503816,6.13195,1630.8,1630.7,6.14]
[1744569504090,12.26421,1630.8,1630.5,6.14]
[1744569504413,0.7592,1631.0,1630.5,6.83618]
[1744569504414,12.26517,1630.7,1630.5,6.83618]
[1744569504609,6.1325,1630.7,1630.5,6.83618]
[1744569505317,6.13271,1630.6,1630.4,0.8218]
[1744569505492,6.13346,1630.4,1630.3,6.14]
[1744569506791,6.13219,1630.8,1630.4,0.8218]
[1744569506996,6.13219,1630.8,1630.4,7.01636533]
[1744569507199,6.13219,1630.8,1630.5,0.70163653]
[1744569509697,6.13266,1630.7,1630.4,0.8218]
[1744569509896,10.654,1631.0,1630.4,0.8218]
[1744569510101,6.13263,1630.7,1630.4,0.8218]
[1744569510543,6.13277,1630.6,1630.4,0.8218]
[1744569510699,12.26576,1630.6,1630.3,6.14]
[1744569511051,6.13327,1630.5,1630.3,7.367405]
[1744569511398,6.13327,1630.5,1630.3,6.14]
[1744569511606,12.26422,1630.8,1630.4,6.13336]
[1744569512225,12.26422,1630.8,1630.5,0.06132951]
[1744569512414,12.26422,1630.8,1630.4,6.13336]
[1744569513534,1.22920017,1630.9,1630.5,0.06132397]
[1744569513535,7.36085017,1630.9,1630.5,0.06132397]
[1744569513743,13.78524,1631.0,1630.5,0.8218]
[1744569513902,6.131,1631.1,1630.7,6.13217]
[1744569514245,3.0,1631.0,1630.7,7.359387]
[1744569514546,9.13125,1631.0,1630.7,7.359387]
[1744569514730,6.13166,1630.9,1630.6,6.14]
[1744569514903,12.26358,1630.9,1630.7,0.12550333]
[1744569515098,12.26358,1630.9,1630.6,6.14]
[1744569515305,6.13166,1630.9,1630.7,0.12550333]
[1744569515508,6.13166,1630.9,1630.6,6.14]
[1744569515708,12.26343,1630.9,1630.7,0.12550333]
[1744569516042,12.26343,1630.9,1630.6,8.062769]
[1744569516245,6.13166,1630.9,1630.8,0.12550333]
[1744569516442,6.13166,1630.9,1630.6,14.195329]
[1744569516679,12.26344,1630.9,1630.8,0.12550333]
[1744569516873,12.26344,1630.9,1630.6,8.062769]
[1744569517185,12.26344,1630.9,1630.7,0.12829666]
[1744569517342,6.13116,1631.1,1630.7,0.9958889]
[1744569517542,12.2623,1631.1,1630.7,7.06672356]
[1744569517757,12.2623,1631.1,1630.7,13.19893356]
[1744569517938,6.13101,1631.1,1630.7,7.06672356]
[1744569518145,6.13086,1631.1,1630.8,13.09357]
[1744569518478,6.13086,1631.1,1630.8,13.09375]
[1744569518780,6.13086,1631.1,1630.9,0.12496544]
[1744569519349,6.13051,1631.2,1630.9,6.25632544]
[1744569519639,7.637,1631.4,1631.0,6.14]
[1744569519844,7.637,1631.4,1631.1,13.73058992]
[1744569520145,7.637,1631.4,1631.1,13.794148]
[1744569520676,7.637,1631.4,1631.2,6.1304]
[1744569520968,7.637,1631.4,1631.0,6.14]
[1744569521187,6.13045,1631.2,1631.0,6.14]
[1744569522049,12.26109,1631.2,1631.0,6.14]
[1744569522284,6.13083,1631.1,1631.0,6.14]
[1744569523092,7.637,1631.4,1631.1,0.7939]
[1744569523255,13.76677,1631.4,1631.1,6.9246]
[1744569523596,6.89152,1631.6,1631.2,6.1301]
[1744569523890,12.25922,1631.5,1631.2,6.14]
[1744569525588,12.25908,1631.5,1631.2,6.14]
[1744569525745,6.12975,1631.4,1631.2,6.14]
[1744569525951,6.13008,1631.3,1631.2,6.14]
[1744569526687,10.35181378,1631.3,1631.2,6.14]
[1744569527793,6.13158,1630.9,1630.8,6.14]
[1744569528197,6.13158,1630.9,1630.8,6.25980885]
[1744569528505,6.13158,1630.9,1630.8,0.11980885]
[1744569528656,6.90188,1631.2,1630.8,0.74578973]
[1744569528856,6.90188,1631.2,1630.9,6.13155]
[1744569529157,6.13086,1631.1,1630.8,7.57320088]
[1744569529358,6.13086,1631.1,1631.0,0.12045341]
[1744569529653,3.0,1631.3,1631.0,0.12045341]
[1744569529883,14.59342,1631.4,1631.1,6.1308]
[1744569530082,14.59342,1631.4,1631.2,0.12045341]
[1744569530260,7.636,1631.4,1631.2,6.1304]
[1744569530455,7.636,1631.4,1631.3,0.12045341]
[1744569530900,7.636,1631.4,1631.3,12.39053341]
[1744569531081,6.12899,1631.6,1631.3,13.01561875]
[1744569531398,59.9451244,1631.7,1631.3,19.14555875]
[1744569532508,0.4037944,1631.7,1631.5,6.12899]
[1744569532713,0.4037944,1631.7,1631.6,13.18161066]
[1744569533014,0.4037944,1631.7,1631.6,18.66879912]
[1744569533193,4.07068761,1632.2,1632.1,6.92207]
[1744569533505,4.07068761,1632.2,1632.1,13.06207]
[1744569533668,4.07068761,1632.2,1632.1,15.02665781]
[1744569533867,4.07068761,1632.2,1632.1,8.89958781]
[1744569534278,4.07068761,1632.2,1632.1,6.14]
[1744569534680,4.07068761,1632.2,1631.9,6.935]
[1744569535075,4.84478761,1632.2,1631.9,6.14]
[1744569535472,10.97149761,1632.2,1631.9,6.14]
[1744569535894,4.84478761,1632.2,1631.9,6.14]
[1744569536114,6.12745,1632.0,1631.9,6.14]
[1744569536425,4.07068761,1632.2,1631.9,12.26772]
[1744569536597,6.12714,1632.1,1631.9,6.14]
[1744569536804,4.07068761,1632.2,1631.9,6.14]
[1744569537174,4.07068761,1632.2,1631.9,12.3289515]
[1744569537376,4.07068761,1632.2,1632.0,1.23289515]
[1744569538476,0.02,1632.4,1632.2,6.12656]
[1744569538776,6.14595,1632.4,1632.1,0.8333]
[1744569538989,0.02,1632.4,1632.1,6.96027]
[1744569539213,0.02,1632.4,1632.2,6.822477]
[1744569539375,0.02,1632.4,1632.2,12.962477]
[1744569539698,6.12632,1632.3,1632.2,6.14]
[1744569540471,6.90042,1632.3,1632.2,6.14]
[1744569540675,9.90042,1632.3,1632.2,6.14]
[1744569541523,6.1282,1631.8,1631.7,6.14]
[1744569541823,6.1282,1631.8,1631.5,4.10996957]
[1744569541824,6.12895,1631.6,1631.5,4.10996957]
[1744569542374,6.12873,1631.7,1631.5,4.10996957]
[1744569542579,0.7741,1631.9,1631.5,10.65005653]
[1744569542816,19.87019,1632.0,1631.6,0.89458421]
[1744569542989,13.74246,1632.0,1631.6,7.02352421]
[1744569543313,19.87013,1632.0,1631.6,13.10224]
[1744569543504,13.74246,1632.0,1631.6,13.10224]
[1744569543706,13.74246,1632.0,1631.7,1.310224]
[1744569544224,7.615,1632.0,1631.7,1.310224]
[1744569544617,13.74246,1632.0,1631.7,1.310224]
[1744569544914,6.12788,1631.9,1631.7,1.310224]
[1744569545312,13.74246,1632.0,1631.7,1.310224]